bitfinex/quotes_BTCUSD_20251010
["timestamp","ask_amount","ask_price","bid_price","bid_amount"]
[1760081045376,0.42489512,121410.0,121400.0,0.31686925]
[1760081045582,1.1096599,121410.0,121400.0,0.31686925]
[1760081045789,1.1096599,121410.0,121400.0,0.29409925]
[1760081046208,1.1096199,121410.0,121400.0,0.29409925]
[1760081046575,1.1096199,121410.0,121400.0,0.31786925]
[1760081048198,0.65789512,121410.0,121400.0,0.39319491]
[1760081049793,0.65789512,121410.0,121400.0,0.31786925]
[1760081049998,1.1096199,121410.0,121400.0,0.29409925]
[1760081050207,0.8766199,121410.0,121400.0,0.31721832]
[1760081050410,1.1096199,121410.0,121400.0,0.31721832]
[1760081051262,1.1096199,121410.0,121400.0,0.31704472]
[1760081053565,1.1096199,121410.0,121400.0,0.29327472]
[1760081055254,1.1096199,121410.0,121400.0,0.01782255]
[1760081055255,1.49307575,121410.0,121400.0,0.01782255]
[1760081055911,1.72607575,121410.0,121400.0,0.01782255]
[1760081056530,1.49307575,121410.0,121400.0,0.01782255]
[1760081056735,1.72707575,121410.0,121400.0,0.01782255]
[1760081057364,1.72807575,121410.0,121400.0,0.01782255]
[1760081059882,1.49507575,121410.0,121400.0,0.00205795]
[1760081060104,1.49507575,121410.0,121400.0,0.01782255]
[1760081060315,1.72807575,121410.0,121400.0,0.01782255]
[1760081060924,1.49507575,121410.0,121400.0,0.01782255]
[1760081061139,1.40935575,121410.0,121400.0,0.01782255]
[1760081061473,1.72807575,121410.0,121400.0,0.01782255]
[1760081062076,1.64235575,121410.0,121400.0,0.01782255]
[1760081062289,0.7928999,121410.0,121400.0,0.18256719]
[1760081062486,0.002,121410.0,121400.0,0.31740925]
[1760081062672,0.66072,121410.0,121400.0,0.31740925]
[1760081063425,0.42672,121410.0,121400.0,0.31740925]
[1760081063623,0.42572,121410.0,121400.0,0.31740925]
[1760081063759,1.27517585,121410.0,121400.0,0.29363925]
[1760081065435,1.27517585,121410.0,121400.0,0.10094461]
[1760081066265,1.27517585,121410.0,121400.0,0.26568925]
[1760081066471,1.27517585,121410.0,121400.0,0.08518001]
[1760081066671,1.27517585,121410.0,121400.0,0.10094461]
[1760081066877,1.27517585,121410.0,121400.0,0.01782255]
[1760081066878,1.72690063,121410.0,121400.0,0.01782255]
[1760081067160,1.27517585,121410.0,121400.0,0.18256719]
[1760081067374,1.27517585,121410.0,121400.0,0.01782255]
[1760081068136,1.27717585,121410.0,121400.0,0.01782255]
[1760081068434,0.82545107,121410.0,121400.0,0.01782255]
[1760081068822,1.27717585,121410.0,121400.0,0.01782255]
[1760081069710,1.72890063,121410.0,121400.0,0.01782255]
[1760081070148,1.27717585,121410.0,121400.0,0.01782255]
[1760081070337,0.82545107,121410.0,121400.0,0.01782255]
[1760081070571,1.04417585,121410.0,121400.0,0.01782255]
[1760081070828,1.27717585,121410.0,121400.0,0.01782255]
[1760081071050,1.72890063,121410.0,121400.0,0.01782255]
[1760081071299,1.49590063,121410.0,121400.0,0.01782255]
[1760081071779,1.72890063,121410.0,121400.0,0.00205795]
[1760081072005,1.86534063,121410.0,121400.0,0.00205795]
[1760081072225,2.09834063,121410.0,121400.0,0.01782255]
[1760081072429,1.86534063,121410.0,121400.0,0.01782255]
[1760081072699,2.01262063,121410.0,121400.0,0.01782255]
[1760081072932,2.09834063,121410.0,121400.0,0.01782255]
[1760081073864,1.04417585,121410.0,121400.0,0.01782255]
[1760081074343,1.27717585,121410.0,121400.0,0.01782255]
[1760081074818,1.60224163,121410.0,121400.0,0.01782255]
[1760081075103,1.60224163,121410.0,121400.0,0.00205795]
[1760081075337,1.83524163,121410.0,121400.0,0.01782255]
[1760081078230,1.83524163,121410.0,121400.0,0.00205795]
[1760081078488,0.93179207,121410.0,121400.0,0.00205795]
[1760081078715,1.04417585,121410.0,121400.0,0.00205795]
[1760081078913,1.61485363,121410.0,121400.0,0.00205795]
[1760081079122,1.84785363,121410.0,121400.0,0.00205795]
[1760081079344,1.41018063,121410.0,121400.0,0.00205795]
[1760081079593,1.72890063,121410.0,121400.0,0.00205795]
[1760081080097,0.40129507,121410.0,121400.0,0.00205795]
[1760081080353,0.70417585,121410.0,121400.0,0.00205795]
[1760081080611,0.93717585,121410.0,121400.0,0.00205795]
[1760081082921,0.93692874,121410.0,121400.0,0.00205795]
[1760081083339,0.961686,121410.0,121400.0,0.00205795]
[1760081084131,1.75341078,121410.0,121400.0,0.00205795]
[1760081085849,1.43469078,121410.0,121400.0,0.00205795]
[1760081086105,1.75341078,121410.0,121400.0,0.00205795]
[1760081087002,0.36675726,121410.0,121400.0,0.00205795]
[1760081087237,0.42772,121410.0,121400.0,0.23345719]
[1760081087503,0.77244478,121410.0,121400.0,0.25134376]
[1760081087708,0.32072,121410.0,121400.0,0.27462376]
[1760081087936,0.77244478,121410.0,121400.0,0.27462376]
[1760081088157,0.77244478,121410.0,121400.0,0.21022719]
[1760081088158,0.53944478,121410.0,121400.0,0.21022719]
[1760081088368,0.08672,121410.0,121400.0,0.23350719]
[1760081088590,0.31972,121410.0,121400.0,0.23350719]
[1760081088801,0.53844478,121410.0,121400.0,0.23350719]
[1760081089027,0.53744478,121410.0,121400.0,0.23350719]
[1760081089233,0.76935342,121410.0,121400.0,0.27462876]
[1760081089439,0.76935342,121410.0,121400.0,0.23350719]
[1760081090072,0.45172478,121410.0,121400.0,0.23350719]
[1760081090302,0.77044478,121410.0,121400.0,0.23350719]
[1760081090523,0.69475453,121420.0,121410.0,0.16473107]
[1760081090737,0.95574914,121420.0,121410.0,0.23093567]
[1760081090965,1.18874914,121420.0,121410.0,0.23093567]
[1760081091181,1.35346664,121420.0,121410.0,0.23093567]
[1760081091397,1.10302914,121420.0,121410.0,0.23093567]
[1760081091629,1.33943457,121420.0,121410.0,0.23093567]
[1760081093170,1.50515207,121420.0,121410.0,0.23093567]
[1760081093378,1.50515207,121420.0,121410.0,0.20765567]
[1760081093652,1.50415207,121420.0,121410.0,0.20765567]
[1760081095154,0.08622386,121420.0,121410.0,0.2717527]
[1760081095348,0.31922386,121420.0,121410.0,0.2717527]
[1760081095812,0.00050386,121420.0,121410.0,0.38502666]
[1760081096017,0.31922386,121420.0,121410.0,0.38502666]
[1760081096229,0.31922386,121420.0,121410.0,0.38657]
[1760081096474,0.08622386,121420.0,121410.0,0.38657]
[1760081096685,0.31922386,121420.0,121410.0,0.38657]
[1760081097116,0.08622386,121420.0,121410.0,0.38657]
[1760081097331,0.85335157,121420.0,121410.0,0.01730794]
[1760081097586,1.08635157,121420.0,121410.0,0.01730794]
[1760081099075,1.08635157,121420.0,121410.0,0.18203901]
[1760081100368,0.76813271,121420.0,121410.0,0.18203901]
[1760081100578,1.00113271,121420.0,121410.0,0.18203901]
[1760081100974,1.00113271,121420.0,121410.0,0.21785116]
[1760081101130,1.00113271,121420.0,121410.0,0.01730794]
[1760081101766,1.00113271,121420.0,121410.0,0.18203901]
[1760081104032,1.11113271,121420.0,121410.0,0.18203901]
[1760081104439,0.87813271,121420.0,121410.0,0.01730794]
[1760081104658,1.11109271,121420.0,121410.0,0.01730794]
[1760081105337,1.38284451,121420.0,121410.0,0.01730794]
[1760081105631,1.53580771,121420.0,121410.0,0.00154334]
[1760081105882,1.64580771,121420.0,121410.0,0.00154334]
[1760081106132,1.90352372,121420.0,121410.0,0.00154334]
[1760081106374,1.67056372,121420.0,121410.0,0.00154334]
[1760081106620,1.90452372,121420.0,121410.0,0.00154334]
[1760081106879,0.64147351,121420.0,121410.0,0.00154334]
[1760081107118,1.90552372,121420.0,121410.0,0.00154334]
[1760081108580,1.67256372,121420.0,121410.0,0.00154334]
[1760081108805,1.24388372,121420.0,121410.0,0.00154334]
[1760081109065,1.90552372,121420.0,121410.0,0.00154334]
[1760081110409,1.24388372,121420.0,121410.0,0.00154334]
[1760081110622,1.90552372,121420.0,121410.0,0.00154334]
[1760081115624,1.67256372,121420.0,121410.0,0.00154334]
[1760081115865,2.62194272,121420.0,121410.0,0.00154334]
[1760081116078,2.38894272,121420.0,121410.0,0.00154334]
[1760081116290,2.62194272,121420.0,121410.0,0.00154334]
[1760081116496,2.38894272,121420.0,121410.0,0.00154334]
[1760081116704,2.62194272,121420.0,121410.0,0.00154334]
[1760081116937,2.40428172,121420.0,121410.0,0.00154334]
[1760081117139,2.63728172,121420.0,121410.0,0.00154334]
[1760081117351,2.64495001,121420.0,121410.0,0.00154334]
[1760081118181,3.02807207,121420.0,121410.0,0.00154334]
[1760081118802,6.80233307,121420.0,121410.0,0.00154334]
[1760081119006,2.31169307,121420.0,121410.0,0.00154334]
[1760081119181,6.81167307,121420.0,121410.0,0.00154334]
[1760081119452,6.54598307,121420.0,121410.0,0.00154334]
[1760081119652,6.77310007,121420.0,121410.0,0.00154334]
[1760081119788,2.31169307,121420.0,121410.0,0.00154334]
[1760081119967,6.77278907,121420.0,121410.0,0.00154334]
[1760081120404,5.67423707,121420.0,121410.0,0.00154334]
[1760081120591,6.33772707,121420.0,121410.0,0.00154334]
[1760081120793,6.43521107,121420.0,121410.0,0.00154334]
[1760081120996,2.31173307,121420.0,121410.0,0.00154334]
[1760081121428,5.67749007,121420.0,121410.0,0.00154334]
[1760081121632,5.53967207,121420.0,121410.0,0.00154334]
[1760081121835,2.31173307,121420.0,121410.0,0.00154334]
[1760081122055,5.53860307,121420.0,121410.0,0.00154334]
[1760081122258,2.31173307,121420.0,121410.0,0.00154334]
[1760081122461,5.54276707,121420.0,121410.0,0.00154334]
[1760081122666,5.69132607,121420.0,121410.0,0.00154334]
[1760081122866,5.34747707,121420.0,121410.0,0.00154334]
[1760081123048,2.31173307,121420.0,121410.0,0.00154334]
[1760081123279,5.82616807,121420.0,121410.0,0.00154334]
[1760081123480,5.98387207,121420.0,121410.0,0.00154334]
[1760081123685,5.99513707,121420.0,121410.0,0.00154334]
[1760081123887,2.31173307,121420.0,121410.0,0.00154334]
[1760081124096,5.31296907,121420.0,121410.0,0.00154334]
[1760081124301,4.69481807,121420.0,121410.0,0.00154334]
[1760081124509,4.70289007,121420.0,121410.0,0.00154334]
[1760081124690,4.70494707,121420.0,121410.0,0.00154334]
[1760081124918,5.11014107,121420.0,121410.0,0.00154334]
[1760081125120,4.86123707,121420.0,121410.0,0.00154334]
[1760081125236,2.31173307,121420.0,121410.0,0.00154334]
[1760081125477,4.96753407,121420.0,121410.0,0.00154334]
[1760081125692,5.17011007,121420.0,121410.0,0.00154334]
[1760081125916,5.16637107,121420.0,121410.0,0.00154334]
[1760081126132,5.26898307,121420.0,121410.0,0.00154334]
[1760081126346,5.25836407,121420.0,121410.0,0.00154334]
[1760081126548,5.03691307,121420.0,121410.0,0.00154334]
[1760081126766,5.41440607,121420.0,121410.0,0.00154334]
[1760081126992,5.25655607,121420.0,121410.0,0.00154334]
[1760081127214,5.03145907,121420.0,121410.0,0.00154334]
[1760081127421,5.14834307,121420.0,121410.0,0.00154334]
[1760081127628,5.15094707,121420.0,121410.0,0.00154334]
[1760081127831,5.22277207,121420.0,121410.0,0.00154334]
[1760081128050,2.31173307,121420.0,121410.0,0.00154334]
[1760081128509,5.22035007,121420.0,121410.0,0.00154334]
[1760081128714,5.08239407,121420.0,121410.0,0.00154334]
[1760081129121,5.20541007,121420.0,121410.0,0.00154334]
[1760081129330,5.39327407,121420.0,121410.0,0.00154334]
[1760081129538,5.22595307,121420.0,121410.0,0.00154334]
[1760081129779,4.99575407,121420.0,121410.0,0.00154334]
[1760081130108,4.83812107,121420.0,121410.0,0.00154334]
[1760081130326,4.42565686,121420.0,121410.0,0.00154334]
[1760081130539,4.83852407,121420.0,121410.0,0.00154334]
[1760081130778,4.67357807,121420.0,121410.0,0.00154334]
[1760081131004,4.28890307,121420.0,121410.0,0.00154334]
[1760081131245,4.30090407,121420.0,121410.0,0.00154334]
[1760081131464,1.65001307,121420.0,121410.0,0.00154334]
[1760081131684,2.81047407,121420.0,121410.0,0.00154334]
[1760081132102,3.45518307,121420.0,121410.0,0.00154334]
[1760081132105,3.49615207,121420.0,121410.0,0.00154334]
[1760081132304,2.49551207,121420.0,121410.0,0.00154334]
[1760081132510,2.72851207,121420.0,121410.0,0.00154334]
[1760081133562,2.09174007,121420.0,121410.0,0.00154334]
[1760081133776,1.07027351,121420.0,121410.0,0.00154334]
[1760081133980,1.90568372,121420.0,121410.0,0.00154334]
[1760081134610,1.67268372,121420.0,121410.0,0.00154334]
[1760081134819,0.19776,121420.0,121410.0,0.23350901]
[1760081135082,0.3624775,121420.0,121410.0,0.12474474]
[1760081135253,0.5954775,121420.0,121410.0,0.04474794]
[1760081135610,0.3624775,121420.0,121410.0,0.02947794]
[1760081135856,0.5954775,121420.0,121410.0,0.02947794]
[1760081136054,0.5954775,121420.0,121410.0,0.01730794]
[1760081136265,1.19788771,121420.0,121410.0,0.01730794]
[1760081136462,0.5944775,121420.0,121410.0,0.01730794]
[1760081136894,0.96288771,121420.0,121410.0,0.01730794]
[1760081137128,1.19588771,121420.0,121410.0,0.01730794]
[1760081137925,0.96288771,121420.0,121410.0,0.01730794]
[1760081138124,1.19588771,121420.0,121410.0,0.01730794]
[1760081138785,0.96288771,121420.0,121410.0,0.01730794]
[1760081139002,0.3604775,121420.0,121410.0,0.01730794]
[1760081139213,1.19588771,121420.0,121410.0,0.01730794]
[1760081139403,0.5934775,121420.0,121410.0,0.03257794]
[1760081139631,1.19588771,121420.0,121410.0,0.01730794]
[1760081139866,0.96288771,121420.0,121410.0,0.01730794]
[1760081140106,0.19572,121420.0,121410.0,0.25533424]
[1760081140327,0.42872,121420.0,121410.0,0.25533424]
[1760081140546,0.19572,121420.0,121410.0,0.25533424]
[1760081141003,0.42872,121420.0,121410.0,0.25533424]
[1760081141188,0.11,121420.0,121410.0,0.3384563]
[1760081141424,0.19572,121420.0,121410.0,0.3384563]
[1760081141841,0.42872,121420.0,121410.0,0.3384563]
[1760081142471,0.42872,121420.0,121410.0,0.31663107]
[1760081143545,0.19572,121420.0,121410.0,0.31663107]
[1760081143753,0.19572,121420.0,121410.0,0.94919318]
[1760081143969,0.19572,121420.0,121410.0,0.34678297]
[1760081144611,0.42868,121420.0,121410.0,0.32275297]
[1760081144810,0.42868,121420.0,121410.0,0.39915271]
[1760081146113,0.19572,121420.0,121410.0,0.39915271]
[1760081146315,0.42868,121420.0,121410.0,0.39915271]
[1760081146971,0.96284771,121420.0,121410.0,0.29260107]
[1760081147185,1.19580771,121420.0,121410.0,0.29260107]
[1760081147466,1.03109021,121420.0,121410.0,0.29260107]
[1760081147675,0.42868,121420.0,121410.0,0.31663107]
[1760081147881,0.19572,121420.0,121410.0,0.31663107]
[1760081148086,0.5933975,121420.0,121410.0,0.12787]
[1760081148465,0.5933975,121420.0,121410.0,0.29260107]
[1760081148949,0.5933975,121420.0,121410.0,0.1121054]
[1760081149152,1.19580771,121420.0,121410.0,0.00154334]
[1760081149335,1.19580771,121420.0,121410.0,0.01730794]
[1760081149698,0.96284771,121420.0,121410.0,0.00154334]
[1760081149914,1.19580771,121420.0,121410.0,0.01730794]
[1760081153702,1.26418994,121420.0,121410.0,0.01730794]
[1760081153894,1.49714994,121420.0,121410.0,0.01730794]
[1760081154334,1.83714994,121420.0,121410.0,0.01730794]
[1760081160814,4.21297716,121420.0,121410.0,0.01730794]
[1760081161053,6.23683122,121420.0,121410.0,0.00154334]
[1760081161289,6.11399682,121420.0,121410.0,0.00154334]
[1760081161525,2.73809482,121420.0,121410.0,0.00154334]
[1760081161750,6.00442582,121420.0,121410.0,0.00154334]
[1760081161942,6.37693782,121420.0,121410.0,0.00154334]
[1760081162144,2.73809482,121420.0,121410.0,0.00154334]
[1760081162381,3.0985782,121420.0,121410.0,0.00154334]
[1760081162611,3.4771952,121420.0,121410.0,0.00154334]
[1760081162833,3.5070732,121420.0,121410.0,0.00154334]
[1760081163065,3.8101312,121420.0,121410.0,0.00154334]
[1760081163296,2.3034452,121420.0,121410.0,0.00154334]
[1760081163526,3.4536322,121420.0,121410.0,0.00154334]
[1760081163780,2.6020052,121420.0,121410.0,0.00154334]
[1760081164010,3.1782102,121420.0,121410.0,0.00154334]
[1760081164250,3.6057152,121420.0,121410.0,0.00154334]
[1760081164472,3.8622922,121420.0,121410.0,0.00154334]
[1760081164694,3.8659962,121420.0,121410.0,0.00154334]
[1760081164933,3.7101982,121420.0,121410.0,0.00154334]
[1760081165192,3.8852682,121420.0,121410.0,0.00154334]
[1760081165429,2.74172264,121420.0,121410.0,0.00154334]
[1760081165689,3.75146164,121420.0,121410.0,0.00154334]
[1760081165872,3.96256964,121420.0,121410.0,0.00154334]
[1760081166098,4.16864064,121420.0,121410.0,0.00154334]
[1760081166361,4.17014064,121420.0,121410.0,0.00154334]
[1760081166558,4.01859664,121420.0,121410.0,0.00154334]
[1760081166769,3.77876364,121420.0,121410.0,0.00154334]
[1760081166976,2.08004264,121420.0,121410.0,0.00154334]
[1760081167181,3.42936264,121420.0,121410.0,0.00154334]
[1760081167395,3.44241664,121420.0,121410.0,0.00154334]
[1760081167602,3.16021064,121420.0,121410.0,0.00154334]
[1760081167838,3.33064264,121420.0,121410.0,0.00154334]
[1760081168045,3.38529364,121420.0,121410.0,0.00154334]
[1760081168256,3.5328036,121420.0,121410.0,0.00154334]
[1760081168474,2.8603676,121420.0,121410.0,0.00154334]
[1760081168692,3.3825256,121420.0,121410.0,0.00154334]
[1760081168902,3.5745316,121420.0,121410.0,0.00154334]
[1760081169112,3.0217026,121420.0,121410.0,0.00154334]
[1760081170418,1.6122601,121420.0,121410.0,0.00154334]
[1760081170644,2.74901254,121420.0,121410.0,0.00154334]
[1760081172468,1.98159654,121420.0,121410.0,0.00154334]
[1760081172681,2.41031654,121420.0,121410.0,0.00154334]
[1760081172889,2.62708994,121420.0,121410.0,0.00154334]
[1760081173305,1.7233375,121420.0,121410.0,0.00154334]
[1760081173520,1.7233375,121420.0,121410.0,0.01730794]
[1760081173912,2.62708994,121420.0,121410.0,0.01730794]
[1760081175184,1.94221372,121420.0,121410.0,0.03385794]
[1760081175391,1.32562,121420.0,121410.0,0.25307895]
[1760081175605,0.88259622,121420.0,121410.0,0.25307895]
[1760081175818,1.11559622,121420.0,121410.0,0.25307895]
[1760081176026,1.11559622,121420.0,121410.0,0.23048895]
[1760081176451,0.45387622,121420.0,121410.0,0.25307895]
[1760081176669,0.32072,121420.0,121410.0,0.25307895]
[1760081176891,0.08672,121420.0,121410.0,0.25307895]
[1760081177117,0.08672,121420.0,121410.0,0.33620101]
[1760081177326,0.31972,121420.0,121410.0,0.81822913]
[1760081177768,0.08672,121420.0,121410.0,0.36635291]
[1760081177983,0.08672,121420.0,121410.0,0.81822913]
[1760081177984,0.31972,121420.0,121410.0,0.81822913]
[1760081178205,0.31872,121420.0,121410.0,0.81822913]
[1760081178628,0.31872,121420.0,121410.0,0.36635291]
[1760081180107,0.31872,121420.0,121410.0,0.81822913]
[1760081181665,0.31872,121420.0,121410.0,0.36635291]
[1760081182729,0.08572,121420.0,121410.0,0.81822913]
[1760081182964,0.08572,121420.0,121410.0,0.36635291]
[1760081183163,0.31868,121420.0,121410.0,0.36635291]
[1760081187334,0.42868,121420.0,121410.0,0.36635291]
[1760081187848,0.19572,121420.0,121410.0,0.81822913]
[1760081188077,0.42868,121420.0,121410.0,0.36635291]
[1760081188279,0.42868,121420.0,121410.0,0.81822913]
[1760081188805,0.42868,121420.0,121410.0,0.36635291]
[1760081189674,0.19572,121420.0,121410.0,0.36635291]
[1760081189879,0.42864,121420.0,121410.0,0.36635291]
[1760081193874,0.19572,121420.0,121410.0,0.36635291]
[1760081194090,0.88051622,121420.0,121410.0,0.41635291]
[1760081194507,0.42864,121420.0,121410.0,0.41635291]
[1760081194923,0.19572,121420.0,121410.0,0.41635291]
[1760081195349,0.42864,121420.0,121410.0,0.86822913]
[1760081195560,0.11,121420.0,121410.0,0.86822913]
[1760081195777,0.34292,121420.0,121410.0,0.86822913]
[1760081195980,0.19572,121420.0,121410.0,0.86822913]
[1760081196210,0.42864,121420.0,121410.0,0.86822913]
[1760081196410,0.19572,121420.0,121410.0,0.86822913]
[1760081196687,0.42864,121420.0,121410.0,0.86822913]
[1760081196956,0.11,121420.0,121410.0,0.86822913]
[1760081197160,0.08572,121420.0,121410.0,0.86822913]
[1760081197364,0.18992,121420.0,121410.0,0.86822913]
[1760081197773,0.23092147,121450.0,121440.0,0.18045498]
[1760081197977,1.00143769,121450.0,121440.0,0.23106087]
[1760081198182,1.01291774,121450.0,121440.0,0.23106087]
[1760081198336,1.01291774,121450.0,121440.0,0.06637049]
[1760081198539,1.00917793,121450.0,121440.0,0.23106087]
[1760081198899,0.84550111,121450.0,121440.0,0.24299087]
[1760081199129,1.01117793,121450.0,121440.0,0.24299087]
[1760081199356,1.01117793,121450.0,121440.0,0.26574087]
[1760081199584,1.01117793,121450.0,121440.0,0.07830049]
[1760081200643,0.78404589,121450.0,121440.0,0.26574087]
[1760081200873,0.94872271,121450.0,121440.0,0.26574087]
[1760081201248,0.94872271,121450.0,121440.0,0.24299087]
[1760081201872,0.94872271,121450.0,121440.0,0.26574087]
[1760081202271,0.94872271,121450.0,121440.0,0.24299087]
[1760081204064,0.94872271,121450.0,121440.0,0.06221049]
[1760081204065,0.71580271,121450.0,121440.0,0.06221049]
[1760081204268,0.94872271,121450.0,121440.0,0.06221049]
[1760081204724,0.94872271,121450.0,121440.0,0.0276946]
[1760081205745,0.94872271,121450.0,121440.0,0.19238498]
[1760081206352,0.95639104,121450.0,121440.0,0.0276946]
[1760081207366,0.95639104,121450.0,121440.0,0.0441046]
[1760081207572,0.50451482,121450.0,121440.0,0.20879498]
[1760081207769,0.95639104,121450.0,121440.0,0.0441046]
[1760081208160,1.06347104,121450.0,121440.0,0.06850489]
[1760081208322,1.29639104,121450.0,121440.0,0.23319527]
[1760081208532,0.84451482,121450.0,121440.0,0.25603527]
[1760081208744,0.72347104,121450.0,121440.0,0.25603527]
[1760081209001,1.06347104,121450.0,121440.0,0.25603527]
[1760081209523,1.29639104,121450.0,121440.0,0.25603527]
[1760081210058,1.29639104,121450.0,121440.0,0.23319527]
[1760081210265,1.29639104,121450.0,121440.0,0.0157646]
[1760081210266,1.06347104,121450.0,121440.0,0.0157646]
[1760081210506,1.29635104,121450.0,121440.0,0.0321746]
[1760081211429,1.06347104,121450.0,121440.0,0.0440946]
[1760081211633,1.29635104,121450.0,121440.0,0.23162498]
[1760081212074,1.06347104,121450.0,121440.0,0.23162498]
[1760081212264,1.29635104,121450.0,121440.0,0.2725022]
[1760081212580,1.29635104,121450.0,121440.0,0.08497182]
[1760081212914,1.06347104,121450.0,121440.0,0.08497182]
[1760081213119,1.29635104,121450.0,121440.0,0.2496622]
[1760081213357,0.91413284,121450.0,121440.0,0.2496622]
[1760081213575,1.28194369,121450.0,121440.0,0.2496622]
[1760081213778,1.28194369,121450.0,121440.0,0.2725022]
[1760081214332,1.44662051,121450.0,121440.0,0.2725022]
[1760081214805,1.21374051,121450.0,121440.0,0.2725022]
[1760081215009,1.44662051,121450.0,121440.0,0.2725022]
[1760081215588,1.21374051,121450.0,121440.0,0.2725022]
[1760081215751,1.44662051,121450.0,121440.0,0.2725022]
[1760081215971,1.44662051,121450.0,121440.0,0.2496622]
[1760081216580,1.44662051,121450.0,121440.0,0.20878498]
[1760081216966,1.21374051,121450.0,121440.0,0.23162498]
[1760081217207,1.27427536,121450.0,121440.0,0.23162498]
[1760081217422,0.00204962,121450.0,121440.0,0.34489894]
[1760081217645,0.32064962,121450.0,121440.0,0.34489894]
[1760081217866,0.32064962,121450.0,121440.0,0.42489574]
[1760081218294,0.31964962,121450.0,121440.0,0.42489574]
[1760081218507,0.31864962,121450.0,121440.0,0.42489574]
[1760081218723,0.08576962,121450.0,121440.0,0.42489574]
[1760081218945,0.31864962,121450.0,121440.0,0.42489574]
[1760081220053,4.962e-05,121450.0,121440.0,0.42489574]
[1760081220278,0.08576962,121450.0,121440.0,0.42489574]
[1760081220489,0.31864962,121450.0,121440.0,0.42489574]
[1760081222901,0.08576962,121450.0,121440.0,0.42489574]
[1760081223105,0.31864962,121450.0,121440.0,0.42489574]
[1760081224166,0.42864962,121450.0,121440.0,0.42489574]
[1760081226387,0.19576962,121450.0,121440.0,0.42489574]
[1760081226808,0.31864962,121450.0,121440.0,0.42489574]
[1760081228330,0.08576962,121450.0,121440.0,0.42489574]
[1760081228964,0.31864962,121450.0,121440.0,0.42489574]
[1760081230779,0.08576962,121450.0,121440.0,0.42489574]
[1760081230980,0.31864962,121450.0,121440.0,0.42489574]
[1760081232194,4.962e-05,121450.0,121440.0,0.42489574]
[1760081232446,0.08576962,121450.0,121440.0,1.02704143]
[1760081232657,0.31860962,121450.0,121440.0,1.02704143]
[1760081233119,4.962e-05,121450.0,121440.0,1.02704143]
[1760081233339,4.962e-05,121450.0,121440.0,1.62918712]
[1760081233570,4.962e-05,121450.0,121440.0,1.02704143]
[1760081233571,0.00988962,121450.0,121440.0,1.02704143]
[1760081234456,4.962e-05,121450.0,121440.0,1.02704143]
[1760081234660,4.962e-05,121450.0,121440.0,0.42489574]
[1760081234820,4.962e-05,121450.0,121440.0,1.02704143]
[1760081235452,4.962e-05,121450.0,121440.0,1.02804143]
[1760081236098,4.962e-05,121450.0,121440.0,1.02904143]
[1760081238494,4.962e-05,121450.0,121440.0,1.05378093]
[1760081238945,4.962e-05,121450.0,121440.0,1.28662093]
[1760081239367,4.962e-05,121450.0,121440.0,1.05378093]
[1760081239570,4.962e-05,121450.0,121440.0,1.28662093]
[1760081240479,4.962e-05,121450.0,121440.0,1.65592662]
[1760081240687,4.962e-05,121450.0,121440.0,1.88876662]
[1760081241492,4.962e-05,121450.0,121440.0,1.05378093]
[1760081241958,4.962e-05,121450.0,121440.0,1.28662093]
[1760081242371,4.962e-05,121450.0,121440.0,1.62662093]
[1760081249309,4.962e-05,121450.0,121440.0,1.62658093]
[1760081252598,0.15623503,121480.0,121470.0,0.1804143]
[1760081252814,0.1562854,121480.0,121470.0,0.3127663]
[1760081253035,0.30007359,121480.0,121470.0,0.3357063]
[1760081253193,0.38575359,121480.0,121470.0,0.3357063]
[1760081253397,0.31955856,121480.0,121470.0,0.3357063]
[1760081253599,0.00107856,121480.0,121470.0,0.3658582]
[1760081253821,0.31955856,121480.0,121470.0,0.3658582]
[1760081254399,0.00107856,121480.0,121470.0,0.3658582]
[1760081254607,0.31955856,121480.0,121470.0,0.3658582]
[1760081257030,0.08675856,121480.0,121470.0,0.3658582]
[1760081257233,0.31955856,121480.0,121470.0,0.3658582]
[1760081257760,0.00107856,121480.0,121470.0,0.3658582]
[1760081257958,0.08675856,121480.0,121470.0,0.3658582]
[1760081258161,0.08675856,121480.0,121470.0,0.96800389]
[1760081258376,0.31955856,121480.0,121470.0,0.96800389]
[1760081259532,0.00107856,121480.0,121470.0,0.96800389]
[1760081264908,0.23276,121490.0,121480.0,0.16463615]
[1760081264909,0.02708574,121490.0,121480.0,0.16463615]
[1760081265124,0.08568,121500.0,121490.0,0.1947745]
[1760081265125,0.09334271,121500.0,121490.0,0.1947745]
[1760081265309,0.32615308,121500.0,121490.0,0.30646656]
[1760081265970,0.32615308,121500.0,121490.0,0.33121656]
[1760081266803,0.32615166,121500.0,121490.0,0.33121656]
[1760081267122,0.31849037,121500.0,121490.0,0.33121656]
[1760081267329,0.31849037,121500.0,121490.0,0.38933342]
[1760081267746,0.32615163,121500.0,121490.0,0.38933342]
[1760081268677,0.00771163,121500.0,121490.0,0.38933342]
[1760081268895,0.31849037,121500.0,121490.0,0.38933342]
[1760081269114,0.32615163,121500.0,121490.0,0.38933342]
[1760081270100,0.09339163,121500.0,121490.0,0.38933342]
[1760081270264,0.32615163,121500.0,121490.0,0.38933342]
[1760081271311,0.09339163,121500.0,121490.0,0.38933342]
[1760081271528,0.32615163,121500.0,121490.0,0.38933342]
[1760081271822,0.32717956,121500.0,121490.0,0.38933342]
[1760081272429,0.09441956,121500.0,121490.0,0.38933342]
[1760081272622,0.49174861,121500.0,121490.0,0.33121656]
[1760081272897,0.8611743,121500.0,121490.0,0.0157646]
[1760081273098,0.69656525,121500.0,121490.0,0.1803872]
[1760081273275,0.92928525,121500.0,121490.0,0.1803872]
[1760081273675,1.0938943,121500.0,121490.0,0.1803872]
[1760081273919,1.0938943,121500.0,121490.0,0.22035177]
[1760081274120,0.09441956,121500.0,121490.0,0.38436573]
[1760081274338,0.3194783,121500.0,121490.0,0.38436573]
[1760081275171,0.0867583,121500.0,121490.0,0.34440116]
[1760081275585,0.77068341,121500.0,121490.0,0.34440116]
[1760081276514,0.53796341,121500.0,121490.0,0.34440116]
[1760081276750,0.77068341,121500.0,121490.0,0.34440116]
[1760081277192,0.70257246,121500.0,121490.0,0.29366116]
[1760081277413,0.93529246,121500.0,121490.0,0.29366116]
[1760081277836,1.38649757,121500.0,121490.0,0.29366116]
[1760081278140,1.15377757,121500.0,121490.0,0.29366116]
[1760081278333,1.38649757,121500.0,121490.0,0.29366116]
[1760081278553,0.93529246,121500.0,121490.0,0.29366116]
[1760081279456,1.15377757,121500.0,121490.0,0.0157646]
[1760081279680,1.38649757,121500.0,121490.0,0.1803872]
[1760081280374,1.15377757,121500.0,121490.0,0.1803872]
[1760081280662,0.0010783,121500.0,121490.0,0.24416487]
[1760081280897,0.0010783,121500.0,121490.0,0.26686487]
[1760081281128,0.53796341,121500.0,121490.0,0.26686487]
[1760081281342,0.77068341,121500.0,121490.0,0.26686487]
[1760081281557,0.3194783,121500.0,121490.0,0.38013883]
[1760081281767,0.0010783,121500.0,121490.0,0.83134394]
[1760081281979,0.3194783,121500.0,121490.0,0.83134394]
[1760081282198,0.3194783,121500.0,121490.0,0.38013883]
[1760081282611,0.2337983,121500.0,121490.0,0.38013883]